Cogmind - Beta 17 @@@ ROGUE MODE // 2026.07.20 @ 07:27:13 // Winter2019/RPGLIKE Player: Gallgagger Result: Self-destructed Performance ------------- Evolutions (3) 1500 Regions Visited (6) 1200 Robots Destroyed (252) 1260 Value Destroyed (8637) 8637 Prototype IDs (25) 500 Alien Tech Used (0) 0 Bonus (5265) 5265 TOTAL SCORE: 18362 Bonus ------- Triggered High Security 500 High Alert Combat Kills 4632 Follower Combat Kills 35 Aligned with FarCom 300 Friendly Fire -202 Cogmind --------- Core Integrity 414/600 Matter 291/300 Energy 160/160 System Corruption 3% Temperature Cool (9) Movement Core (250) Ox4 Location -7/Factory Parts ------- > --- POWER (1) -------- Light Nuclear Core > --- PROPULSION (2) --- Potential Leg Potential Leg > --- UTILITY (7) ------ Cooling System Cooling System Cooling System Seismic Detector Hardened Medium Armor Plating Scrap Shield > --- WEAPON (2) ------- Firepult > --- INVENTORY (3) ---- Protomatter-60 Protomatter-58 Plasma Cutter Peak State ------------ > --- POWER ------------ Light Nuclear Core > --- PROPULSION ------- Potential Leg Potential Leg > --- UTILITY ---------- Cooling System Cooling System Cooling System Seismic Detector Hardened Medium Armor Plating Scrap Shield > --- WEAPON ----------- Firepult > --- INVENTORY -------- Protomatter Protomatter Plasma Cutter [Rating: 57] Favorites ----------- Power Light Nuclear Core Engine Backup Power I Power Core Light Nuclear Core Propulsion Potential Leg Leg Potential Leg Hover Unit Backup Propulsion I Flight Unit Flight Unit Utility Cooling System Device Cooling System Protection Scrap Shield Weapon Firepult Energy Gun Particle Gun Energy Cannon Firepult Special Weapon Plasma Cutter Build | -11 -10 -10 -10 -9 -8 -7 ------- Run | Yrd Mat Min Exi Min Mat Fac Slots Evolved 8 | . 4 . 2 . 2 . Power . | . . . . . . . Propulsion 1 | . 1 . . . . . Utility 6 | . 2 . 2 . 2 . Weapon 1 | . 1 . . . . . Parts Attached 23 | . 11 1 4 1 5 1 Power 1 | . 1 . . . . . Engine . | . . . . . . . Core 1 | . 1 . . . . . Reactor . | . . . . . . . Propulsion 4 | . 2 . 2 . . . Treads . | . . . . . . . Leg 2 | . . . 2 . . . Wheel . | . . . . . . . Hover . | . . . . . . . Flight 2 | . 2 . . . . . Utility 12 | . 4 1 1 1 4 1 Device 9 | . 3 1 . 1 3 1 Storage . | . . . . . . . Processor . | . . . . . . . Hackware . | . . . . . . . Protection 3 | . 1 . 1 . 1 . Artifact . | . . . . . . . Weapon 6 | . 4 . 1 . 1 . Energy Gun 4 | . 4 . . . . . Energy Cannon 1 | . . . 1 . . . Ballistic Gun . | . . . . . . . Ballistic Cannon . | . . . . . . . Launcher . | . . . . . . . Special Weapon 1 | . . . . . 1 . Impact Weapon . | . . . . . . . Slashing Weapon . | . . . . . . . Piercing Weapon . | . . . . . . . Special Melee Weapon . | . . . . . . . Unidentified Prototypes . | . . . . . . . Parts Lost 2 | . 2 . . . . . Power . | . . . . . . . Propulsion 1 | . 1 . . . . . Utility 1 | . 1 . . . . . Weapon . | . . . . . . . Highest Loss Streak 1 | . 1 . . . . . To Critical Strikes . | . . . . . . . Average Backups . | . . 1 . . . 1 Power . | . . . . . . . Propulsion . | . . . . . . . Utility . | . . 1 . . . . Weapon . | . . . . . . . Tool/Special . | . . . . . . . Unused Backups . | . . . . . . . Power . | . . . . . . . Propulsion . | . . . . . . . Utility . | . . . . . . . Weapon . | . . . . . . . Tool/Special . | . . . . . . . Average Slot Usage (%) 80 | . 81 100 86 79 76 81 Core 9 | . 11 12 10 10 8 8 Leg 13 | . . . 14 20 17 16 Hover 1 | . 8 . . . . . Flight 3 | . 8 25 7 . . . Device 23 | . 14 25 21 20 23 32 Protection 15 | . 6 12 17 20 17 16 Energy Gun 6 | . 26 25 7 . . . Energy Cannon 6 | . . . 6 9 8 6 Peak Build Rating 57 | . 11 13 52 55 56 57 Average Rating 42 | . 7 12 41 51 53 54 On Entrance 26 | . . 11 13 52 52 56 Avg Prop Armor Cover (%) 4 | . 5 . . . . 2 Naked Turns 51 | . 51 . . . . . Heaviest Build 60 | . 13 13 48 48 59 60 Greatest Support 70 | 3 18 18 70 70 70 70 Greatest Overweight (x) 4 | . . . . . . 4 Average Overweight (x) . | . . . . . . . Largest Inventory Capacity 3 | . 2 2 2 2 3 3 Average Capacity 2 | . . 2 2 2 2 3 Most Carried 3 | . 2 2 2 2 3 3 Average Carried 1 | . . 2 . 1 2 2 Final Capacity 3 | . 2 2 2 2 3 3 Final Carried 3 | . 2 2 1 2 3 3 Class Distribution -------------------- 55% | Mutant 44% | Scavenger-Mutant Dominant Class ---------------- Mutant | -10/Materials Scavenger-Mutant | -10/Mines Scavenger-Mutant | -10/Exiles Scavenger-Mutant | -9/Mines Mutant | -8/Materials Mutant | -7/Factory Resources | -11 -10 -10 -10 -9 -8 -7 ----------- Run | Yrd Mat Min Exi Min Mat Fac Matter Collected 476 | 116 180 10 . 30 115 25 Remotely 50 | . 50 . . . . . Salvage Created 7806 | . 1016 124 21 275 2260 4110 Parts 314 | . 85 5 . 13 95 116 Haulers Intercepted 4 | . 1 . . . 2 1 Recyclers Shooed 3 | . . . . 1 . 2 Parts Field Recycled . | . . . . . . . Retrieved Matter . | . . . . . . . Parts Self-Destructed . | . . . . . . . Prevented . | . . . . . . . Parts Restored . | . . . . . . . Kills | -11 -10 -10 -10 -9 -8 -7 ------- Run | Yrd Mat Min Exi Min Mat Fac Combat Hostiles Destroyed 197 | . 37 5 . 11 53 91 Melee 1 | . . . . 1 . . Guns 42 | . 37 5 . . . . Cannons 15 | . . . . 2 11 2 AOE 65 | . . . . 6 24 35 Classes Destroyed 19 | . 5 . . 2 8 4 Worker 14 | . 2 . . . 6 6 Builder 15 | . . . . . 2 13 Tunneler 5 | . . . . 3 1 1 Hauler 4 | . 1 . . . 2 1 Recycler 6 | . . . . 1 1 4 Mechanic 2 | . . . . . 1 1 Operator 3 | . . . . . 3 . Watcher 2 | . . . . . 2 . Swarmer 35 | . 8 3 . 7 9 8 Grunt 105 | . 26 2 . 4 29 44 Brawler 7 | . . . . . . 7 Duelist 6 | . . . . . . 6 Protector 9 | . . . . . 1 8 Sentry 10 | . . . . . 8 2 Demolisher 1 | . . . . . . 1 Hunter 16 | . . . . . 5 11 Programmer 7 | . . . . . . 7 Heavy 1 | . . . . . 1 . Subdweller 3 | . 3 . . . . . Best Kill Streak 19 | . 9 3 1 7 14 19 Combat Bots Only 14 | . 9 3 . 4 12 14 Max Kills in Single Turn 9 | . 2 1 1 3 3 9 Gunslinging 1 | . 1 . . . . . Exploded 4 | . . . . 3 3 4 Melee 1 | . . . . 1 . . Uniques/NPCs Destroyed 2 | . . . 2 . . . EX-DEC (-10/Exiles) EX-BIN (-10/Exiles) Combat | -11 -10 -10 -10 -9 -8 -7 -------- Run | Yrd Mat Min Exi Min Mat Fac Hostile Shots Fired 516 | . 164 10 2 33 125 182 Missed 208 | . 60 3 . 15 50 80 Hits 308 | . 104 7 2 18 75 102 Projectile 308 | . 104 7 2 18 75 102 Critical Strikes 8 | . 3 . . . 4 1 Damage Taken 4222 | . 1093 97 30 221 1301 1480 Core 2619 | . 849 77 27 113 711 842 Absorbed by Shields . | . . . . . . . Redirected to Core 1950 | . 543 37 9 94 587 680 Redirected to Shielding 29 | . 15 9 . . 5 . Core Remaining (%) 98 | 100 . . . 95 100 . Volleys Fired 294 | . 124 10 2 10 66 82 Largest 2 | . 2 2 1 1 1 1 Hottest 250 | . 115 115 250 250 250 250 Shots Fired 394 | . 214 20 2 10 66 82 Gun 234 | . 214 20 . . . . Cannon 160 | . . . 2 10 66 82 Launcher . | . . . . . . . Special . | . . . . . . . Kinetic . | . . . . . . . Thermal 394 | . 214 20 2 10 66 82 Explosive . | . . . . . . . Electromagnetic . | . . . . . . . Robot Hit Streak 26 | . 26 10 6 8 11 23 Robot Miss Streak 6 | . 5 1 2 3 4 6 Penetration Max . | . . . . . . . Secondary Targets 2 | . 2 . . . . . Max Gunslinging Chain 1 | . 1 . . . . . Shots Hit Robots 293 | . 153 15 2 9 52 62 Core Hits 463 | . 65 8 2 18 112 258 Critical Kills . | . . . . . . . Critical Parts Destroyed . | . . . . . . . Critical Strikes 9 | . 8 1 . . . . Burn 9 | . 8 1 . . . . Melee Attacks . | . . . . . . . Impact . | . . . . . . . Slashing . | . . . . . . . Piercing . | . . . . . . . Sneak Attacks . | . . . . . . . Combat Hostiles . | . . . . . . . Follow-up Attacks . | . . . . . . . Damage Inflicted 16447 | . 2114 202 99 762 4021 9249 Guns 2315 | . 2113 202 . . . . Cannons 2399 | . . . 18 143 970 1268 Explosions 11689 | . . . 81 576 3051 7981 Melee . | . . . . . . . Ramming 44 | . 1 . . 43 . . Kinetic . | . . . . . . . Thermal 16403 | . 2113 202 99 719 4021 9249 Explosive . | . . . . . . . Electromagnetic . | . . . . . . . Impact . | . . . . . . . Slashing . | . . . . . . . Piercing . | . . . . . . . Highest Corruption 6 | . . . 1 1 6 3 Average Corruption 2 | . . . 1 1 4 1 Corruption Purged . | . . . . . . . Corruption Blocked . | . . . . . . . Effects 36 | . . . . 7 18 11 Message Errors 10 | . . . . 2 5 3 Matter Fused 7 | . . . . 1 4 2 Heat Flow Errors 5 | . . . . 2 2 1 Energy Discharges 6 | . . . . 1 3 2 Data Loss (minor) 3 | . . . . . 1 2 Data Loss (major) 2 | . . . . 1 . 1 Misfires 1 | . . . . . 1 . Alerts 1 | . . . . . 1 . Weapon Failures 1 | . . . . . 1 . Overload Shots . | . . . . . . . Overflow Damage 122 | . . . 18 10 18 76 Projectiles 24 | . . . . 6 . 18 Explosions 98 | . . . 18 4 18 58 Melee . | . . . . . . . Knockbacks . | . . . . . . . Impact . | . . . . . . . Kinetic . | . . . . . . . Secondary . | . . . . . . . Self-Inflicted Damage 217 | . . . . 43 174 . Shots 18 | . . . . 3 15 . Rammed 2 | . 2 . . . . . Targets Rammed 12 | . 2 . . 10 . . Kicked 10 | . . . . 10 . . Crushed . | . . . . . . . Highest Temperature 1000 | . 213 . 68 103 158 1000 Average Temperature 107 | . 43 . 42 41 42 352 Received Heat Transfer 1320 | . 468 57 . 60 468 267 Effects 13 | . . . . . . 13 Shutdowns 3 | . . . . . . 3 Energy Bleed 2 | . . . . . . 2 Short Circuit 3 | . . . . . . 3 Damage (minor) 1 | . . . . . . 1 Damage (major) 3 | . . . . . . 3 Damage (core) 1 | . . . . . . 1 Siege Activations . | . . . . . . . Martial Activations . | . . . . . . . Shielding Activations . | . . . . . . . Robots Disrupted . | . . . . . . . Combat Hostiles . | . . . . . . . Robots Corrupted . | . . . . . . . Combat Hostiles . | . . . . . . . Parts Fried 1 | . 1 . . . . . Impact Corruptions . | . . . . . . . Robots Melted 79 | . . . 1 2 19 57 Combat Hostiles 74 | . . . . 2 18 54 Parts Melted 354 | . 23 1 12 15 78 225 Heat Transferred 75012 | . 6051 629 560 3840 21297 42635 Parts Sabotaged . | . . . . . . . Parts Stolen . | . . . . . . . Parts Stripped . | . . . . . . . Power Chain Reactions . | . . . . . . . Alert | -11 -10 -10 -10 -9 -8 -7 ------- Run | Yrd Mat Min Exi Min Mat Fac Maximum Alert Level 5 | . 2 1 . . 5 5 Low Security (%) 34 | 100 44 . . 100 15 . Level 1 17 | . 28 100 . . 27 . Level 2 10 | . 27 . . . 11 9 Level 3 15 | . . . . . 36 20 Level 4 15 | . . . . . 6 47 Level 5 . | . . . . . 2 . High Security 6 | . . . . . . 22 Max Security . | . . . . . . . Sterilizations 1 | . . . . . 1 . Peak Influence 2690 | . 584 347 . 169 1606 2690 Initial 726 | . . 222 . . 1 726 Average 637 | . 247 284 . 67 637 1407 Influence Increases 6222 | . 1036 165 . 429 2126 2466 Destroy 0b10 Robot/C 3720 | . 680 100 . 220 1040 1680 Destroy 0b10 Robot/NC 300 | . 15 . . 20 95 170 Destroy Leader 752 | . 152 20 . 20 288 272 Allied During Kill 45 | . . . . . . 45 Successful Hack 17 | . 17 . . . . . Select Force Hacks 90 | . 60 . . . 30 . Disable Machine 495 | . 15 . . 15 210 255 Anti-Garrison Action 150 | . . . . . 150 . Destroy Structure 413 | . 7 . . 49 313 44 Lose Combat Pursuer 240 | . 90 45 . 105 . . Influence Decreases 3532 | . 464 510 227 424 533 1374 Entered New Map 1453 | . . 350 227 . 4 872 Time Decay 2059 | . 444 160 . 424 529 502 Lost Part 20 | . 20 . . . . . Squads Dispatched 53 | . 11 . . . 15 27 Investigation 18 | . 9 . . . 7 2 Extermination 2 | . . . . . . 2 Reinforcement 8 | . 2 . . . 5 1 Assault 21 | . . . . . 2 19 Garrison 4 | . . . . . 1 3 Intercept . | . . . . . . . Searches Triggered . | . . . . . . . Construction Impeded 2 | . . . . . 1 1 Haulers Reinforced . | . . . . . . . Active Scanning Responses . | . . . . . . . Cargo Convoy Interrupts . | . . . . . . . Stealth | -11 -10 -10 -10 -9 -8 -7 --------- Run | Yrd Mat Min Exi Min Mat Fac Distress Signals 6 | . 1 . . . 4 1 Communications Jammed . | . . . . . . . Distress Signals . | . . . . . . . Times Spotted 263 | . 52 6 . 18 74 113 Peak Tracking Total 12 | . 6 3 9 6 6 12 Tactical Retreats 8 | . 4 1 . 3 . . Traps | -11 -10 -10 -10 -9 -8 -7 ------- Run | Yrd Mat Min Exi Min Mat Fac Traps Triggered 7 | . 2 . . . 4 1 Indirectly . | . . . . . . . Trap Hack Attempts . | . . . . . . . Triggered . | . . . . . . . Disarmed . | . . . . . . . Reprogrammed . | . . . . . . . Reused . | . . . . . . . Traps Extracted . | . . . . . . . Installed . | . . . . . . . Triggered . | . . . . . . . Machines | -11 -10 -10 -10 -9 -8 -7 ---------- Run | Yrd Mat Min Exi Min Mat Fac Machines Disabled 39 | . 1 . 5 1 15 17 Max in Single Turn 11 | . 1 . 1 1 1 11 Garrison Access 1 | . . . . . 1 . Machines Repaired . | . . . . . . . Machines Dismantled 1 | . . . . . 1 . Machines Sabotaged . | . . . . . . . Overloaded Fab Kills . | . . . . . . . Hacking | -11 -10 -10 -10 -9 -8 -7 --------- Run | Yrd Mat Min Exi Min Mat Fac Machines Accessed 20 | . 8 . 1 1 7 3 Terminals 9 | . 5 . . . 3 1 Fabricators 1 | . . . . . . 1 Repair Stations 3 | . 1 . . . 1 1 Recycling Units 3 | . 2 . . . 1 . Scanalyzers 1 | . . . . . 1 . Garrison Access 1 | . . . . . 1 . Total Hacks 39 | . 16 . 1 1 11 10 Successful 21 | . 10 . 1 1 6 3 Failed 18 | . 6 . . . 5 7 Catastrophic 2 | . . . . . . 2 Database Lockouts . | . . . . . . . Manual 31 | . 14 . 1 . 9 7 Terminals 16 | . 11 . . . 3 2 Fabricators 5 | . . . . . . 5 Repair Stations 7 | . 2 . . . 2 3 Recycling Units 6 | . 3 . . . 3 . Scanalyzers 1 | . . . . . 1 . Garrison Access 2 | . . . . . 2 . Terminal Hacks 4 | . 2 . 1 1 . . Robot Analysis 1 | . 1 . . . . . Prototype ID Bank 1 | . 1 . . . . . Open Door 1 | . . . . 1 . . Proto ID Catalog 1 | . . . 1 . . . Fabricator Hacks 1 | . . . . . . 1 Build 1 | . . . . . . 1 Repair Station Hacks 1 | . 1 . . . . . Refit 1 | . 1 . . . . . Recycling Unit Hacks . | . . . . . . . Scanalyzer . | . . . . . . . Garrison Access Hacks 1 | . . . . . 1 . Unlock Access 1 | . . . . . 1 . Unauthorized Hacks 14 | . 7 . . . 5 2 Terminals 7 | . 4 . . . 3 . Sabotage 4 | . 3 . . . 1 . Search 3 | . 1 . . . 2 . Fabricators 1 | . . . . . . 1 Haulers 1 | . . . . . . 1 Repair Stations 3 | . 1 . . . 1 1 Patch 3 | . 1 . . . 1 1 Recycling Units 2 | . 2 . . . . . Tunnel 2 | . 2 . . . . . Scanalyzers 1 | . . . . . 1 . Extract 1 | . . . . . 1 . Garrison Access . | . . . . . . . Data Cores Recovered . | . . . . . . . Used . | . . . . . . . Hacking Detections 6 | . 2 . . . 1 3 Full Trace Events 3 | . 1 . . . 1 1 Feedback Events 1 | . . . . . 1 . Corruption 1 | . . . . . 1 . Feedback Blocked . | . . . . . . . Robot Schematics Acquired . | . . . . . . . Robots Built 3 | . . . . . . 3 Authchips . | . . . . . . . Time 134 | . . . . . . 134 Total Robot Build Rating 12 | . . . . . . 12 Part Schematics Acquired 8 | . . . . . 8 . Parts Built . | . . . . . . . Authchips . | . . . . . . . Time . | . . . . . . . Total Part Build Rating . | . . . . . . . Part Studies Acquired . | . . . . . . . Parts Repaired . | . . . . . . . Time . | . . . . . . . Parts Recycled . | . . . . . . . Recycled Matter . | . . . . . . . Retrieved Matter . | . . . . . . . Retrieved Components . | . . . . . . . Parts Scanalyzed . | . . . . . . . Part Schematics Acquired . | . . . . . . . Parts Damaged . | . . . . . . . Bothacking | -11 -10 -10 -10 -9 -8 -7 ------------ Run | Yrd Mat Min Exi Min Mat Fac Used RIF Installer . | . . . . . . . Robots Hacked . | . . . . . . . Non-combat . | . . . . . . . Combat . | . . . . . . . Robot Hacks Applied . | . . . . . . . Relay Couplers Released 1 | . . . . . 1 . Machine Destruction 1 | . . . . . 1 . Fabnet Peak Effective % . | . . . . . . . Robots Rewired . | . . . . . . . Allies Hacked . | . . . . . . . Hacks Repelled . | . . . . . . . Allies | -11 -10 -10 -10 -9 -8 -7 -------- Run | Yrd Mat Min Exi Min Mat Fac Total Allies 6 | . . 3 . . . 3 Largest Group 3 | . . 3 3 . . 3 Highest-Rated Group 90 | . . 40 40 . . 90 Highest-Rated Ally 30 | . . 16 16 . . 30 Total Orders . | . . . . . . . Ally Attacks 15 | . . . 14 . . 1 Total Damage 167 | . . . 126 . . 41 Kills 2 | . . . 1 . . 1 Allies Corrupted 1 | . . . 1 . . . Allies Melted 1 | . . . . . . 1 Intel | -11 -10 -10 -10 -9 -8 -7 ------- Run | Yrd Mat Min Exi Min Mat Fac Active Infowar (turns) 1556 | . . . . . . 1556 Seismic 1556 | . . . . . . 1556 Robot Analysis Total 1 | . 1 . . . . . Derelict Logs Recovered 2 | . . 1 . 1 . . Drone Launches . | . . . . . . . Drone Recoveries . | . . . . . . . Exploration | -11 -10 -10 -10 -9 -8 -7 ------------- Run | Yrd Mat Min Exi Min Mat Fac Turns Passed 6320 | 9 1166 320 178 1367 1524 1756 Spaces Moved 5189 | 18 1014 636 251 739 1322 1209 Core 122 | 18 101 . . . . 3 Treads . | . . . . . . . Legs 3402 | . . . 135 739 1322 1206 Wheels . | . . . . . . . Hover 159 | . 159 . . . . . Flight 1506 | . 754 636 116 . . . Fastest Speed 37 | 50 37 37 37 45 45 45 Average Speed 73 | 50 47 37 65 87 89 89 Slowest Speed 250 | 50 80 37 90 90 90 250 Overloaded Moves 91 | . . . . 40 11 40 Propulsion Burnouts . | . . . . . . . Robots Hopped 25 | . 13 12 . . . . Potential Cave-ins . | . . . . . . . Cave-ins Triggered . | . . . . . . . Exploration Rate (%) 65 | 4 98 94 61 99 78 24 Regions Visited 6 Branch Regions 3 Pre-discovered Areas 3 | . 2 . . 1 . . Known Exits Taken . | . . . . . . . Unknown Exits Taken 6 | 1 1 1 1 1 1 . Scrap Searched 3 | . . 2 . 1 . . Spaces Dug 1 | . . . . . 1 . Terrain Destroyed 431 | . . . 3 58 340 30 Melee . | . . . . . . . Projectile 17 | . . . . 1 16 . AOE 414 | . . . 3 57 324 30 Terrain Rammed . | . . . . . . . Walls Destroyed . | . . . . . . . Machines Disabled . | . . . . . . . Actions | -11 -10 -10 -10 -9 -8 -7 --------- Run | Yrd Mat Min Exi Min Mat Fac Total 7246 | 17 1476 688 261 1449 1552 1803 Wait 1463 | . 273 48 2 667 38 435 Move 5134 | 17 987 612 250 738 1321 1209 Hop 24 | . 13 11 . . . . Pick Up 25 | . 6 . 1 4 9 5 Fast Attach 10 | . 6 . 1 . 2 1 Attach 4 | . . . 1 1 1 1 Detach 3 | . . . . 1 1 1 Swap 13 | . 5 1 2 2 3 . Drop 31 | . 9 1 2 3 11 5 Fire 294 | . 124 10 2 10 66 82 Melee . | . . . . . . . Ram 2 | . 2 . . . . . Kick 10 | . . . . 10 . . Crush . | . . . . . . . Escape Stasis . | . . . . . . . Rewire . | . . . . . . . Trap . | . . . . . . . Miscellaneous 233 | . 51 5 . 13 100 64 Route ------- -11/Scrapyard -10/Materials (discovered 5 exits: [*Mat x3] / [*Min x2]) -10/Mines (discovered 4 exits: [*Mat x2] / *Exi / *Sub) -10/Exiles (discovered 2 exits: *Min x2) -9/Mines (discovered 2 exits: *Mat x2) -8/Materials (discovered 2 exits: *Fac x2) -7/Factory (discovered 1 exit: [*Low]) History --------- Turn | Location | Event 2 | -11/Scrapyard | Discovered new exit (range 16) 10 | -11/Scrapyard | Entered Materials 26 | -10/Materials | Discovered new exit (range 6) 181 | -10/Materials | Upgraded with Weapon slot (x1) 212 | -10/Materials | Upgraded with Propulsion slot (x1) 312 | -10/Materials | Build established: Mutant 314 | -10/Materials | Core integrity fell below 50% 414 | -10/Materials | Reached level 2 480 | -10/Materials | Discovered new exit (range 15) 502 | -10/Materials | Upgraded with Utility slot (x1) 541 | -10/Materials | Discovered new exit (range 9) 611 | -10/Materials | Discovered new exit (range 15) 827 | -10/Materials | Reached level 3 845 | -10/Materials | Upgraded with Utility slot (x1) 934 | -10/Materials | Discovered new exit (range 14) 1010 | -10/Materials | Derelicts attacked the area 1137 | -10/Materials | Reached level 4 1158 | -10/Materials | Destroyed 9 combat bots 1162 | -10/Materials | Build established: Scavenger-Mutant 1176 | -10/Materials | Entered Mines 1231 | -10/Mines | Met a Derelict bent on vengeance 1296 | -10/Mines | Discovered new exit (range 15) 1307 | -10/Mines | Assisted by bots powering up and referring to "LRC-V3" 1323 | -10/Mines | Deemed a non-threat by the Exiles lab entrance 1323 | -10/Mines | Discovered new exit (range 5) 1351 | -10/Mines | Discovered new exit (range 15) 1359 | -10/Mines | Assembled infested the area 1365 | -10/Mines | Identified exit to Subcaves 1388 | -10/Mines | Received a Rocket Launcher from a helpful Derelict 1401 | -10/Mines | A weapon hastily lodged in a ceiling crevice suddenly fell to the ground 1496 | -10/Mines | Entered Exiles 1496 | -10/Exiles | Accompanied by 3 allies 1504 | -10/Exiles | Discovered new exit (range 15) 1508 | -10/Exiles | Met 8R-AWN 1513 | -10/Exiles | Met EX-HEX 1523 | -10/Exiles | Met EX-BIN 1528 | -10/Exiles | Reached level 5 1528 | -10/Exiles | Aligned with FarCom system 1528 | -10/Exiles | Given EX-Vault access code 1538 | -10/Exiles | Opened EX-Vault 1539 | -10/Exiles | Found Potential Leg 1542 | -10/Exiles | Found Potential Leg 1547 | -10/Exiles | Found Firepult 1549 | -10/Exiles | Upgraded with Utility slot (x2) 1568 | -10/Exiles | Warned to stay clear of 0b10 Research branches 1592 | -10/Exiles | Met EX-DEC 1636 | -10/Exiles | Attacked by the Exiles 1638 | -10/Exiles | Destroyed EX-DEC 1666 | -10/Exiles | Discovered new exit (range 10) 1674 | -10/Exiles | Stole two prototypes: Firepult, Potential Leg 1674 | -10/Exiles | Entered Mines 1734 | -9/Mines | Excavation squad dispatched 1734 | -9/Mines | A large section of the Mines collapsed 1984 | -9/Mines | Excavation squad dispatched 2415 | -9/Mines | Found a Scrap Suit stashed away for nefarious purposes 2447 | -9/Mines | Reached level 6 2469 | -9/Mines | Discovered new exit (range 4) 2522 | -9/Mines | Met a Derelict who couldn't figure out how to use a Trap Extractor 2914 | -9/Mines | Discovered new exit (range 5) 3041 | -9/Mines | Entered Materials 3043 | -8/Materials | Reached level 7 3072 | -8/Materials | Upgraded with Utility slot (x1) 3281 | -8/Materials | Reached level 8 3322 | -8/Materials | Destroyed 7 combat bots 3359 | -8/Materials | Discovered new exit (range 8) 3713 | -8/Materials | Reached level 9 3844 | -8/Materials | Discovered new exit (range 15) 3879 | -8/Materials | Reached level 10 3917 | -8/Materials | Build established: Mutant 4045 | -8/Materials | Identified exit to Garrison 4159 | -8/Materials | Upgraded with Utility slot (x1) 4374 | -8/Materials | Reached level 11 4499 | -8/Materials | Reached level 12 4523 | -8/Materials | Sterilization system engaged 4523 | -8/Materials | Non-combat units ordered to evacuate 4546 | -8/Materials | Destroyed 12 combat bots 4565 | -8/Materials | Entered Factory 4567 | -7/Factory | Reached level 13 4796 | -7/Factory | Reached level 14 4847 | -7/Factory | Fabricated L-41 Fighter? 4949 | -7/Factory | Discovered new exit (range 6) 4965 | -7/Factory | First assault squad dispatched 5104 | -7/Factory | Reached level 15 5119 | -7/Factory | Lost 3 allies 5130 | -7/Factory | Destroyed 13 combat bots 5367 | -7/Factory | Garrison activated, responded to threat 5892 | -7/Factory | Reached level 16 5919 | -7/Factory | High security lockdown imminent 5940 | -7/Factory | Destroyed 8 combat bots 5994 | -7/Factory | Destroyed 7 combat bots 5999 | -7/Factory | High security lockdown engaged 6120 | -7/Factory | Destroyed 12 combat bots 6191 | -7/Factory | Reached level 17 6221 | -7/Factory | Destroyed 14 combat bots 6321 | -7/Factory | Self-destructed Last Messages --------------- 06310_ Cooling System broken. 06310_ Overheating: Short circuit. 06310_ H-55 Commando critical meltdown. 06310_ Gauss Rifle melted. 06310_ Lgt. Nuclear Core melted. 06311_ C-45 Heavy ARC bursts open, deploying its payload. 06311_ H-55 Commando unfolds itself. 06311_ I-36 Angel unfolds itself. 06313_ Slug penetrates Wall. 06313_ Penetrated by Slug. 06316_ I-36 Angel heat short circuits Com. Wheel. 06318_ Slug penetrates Wall. 06318_ Slug penetrates H-55 Commando. 06321_ C-45 Heavy ARC bursts open, deploying its payload. 06321_ G-50 Soldier unfolds itself. 06321_ B-48 Gladiator unfolds itself. 06321_ G-47 Trooper unfolds itself. 06321_ B-48 Gladiator unfolds itself. 06321_ M-28 Smith unfolds itself. 06321_ Slug penetrates Wall. Map ----- +----------------------------------------------------+ | ?????????????????????????????????????????????????? | | ?????????????????????????????????????????????????? | | ?????????????????????????????????????????????????? | | ?????????????????????????????????????????????????? | | ?????????????????????????????????????????????????? | | ?????????????????????????????????????????????????? | | ?????????????????????######### #+#???????????????? | | ????????????????????# ?????????????? | | ????????????????????# = ????????????? | | ????????????????????# % ??????????? | | ???????????????????? " ^ !!?????????? | | ????????????????????#% ^ ! ?????????? | | ????????????????????#%g ??????????? | | ????????????????????#Cb ???????????? | | ????????????????????#gb%m ????????????? | | ????????????????????# " "?????????????? | | ????????????????????#^^%% * ??????????????? | | ????????????????????# %% !!%#???????????????? | | ???###########??????#^=^ =%% #???????????????? | | ??## #??????#%! !!% #???????????????? | | ???/% ########%= % %* #???????????????? | | ???# # %![ = #???????????????? | | ???# """""" # % % #???????????????? | | ???# """""" #[ #???????????????? | | ???# """"""[ % % #???????????????? | | ???# """""" #= =! @ #???????????????? | | ???# #%% ! #???????????????? | | ##############=[ =| / ##########+###### | | *% h % | | * !! hh i % | | % %= %% ! i [% | | % =% % %% | | =% % % % | | #+########################### ####### #####+#####? | | #??????????????????# # #??????????? | | [ #??????????????????# """ """ #?#??????????? | | #??????????????????# """ """ #????????????? | | [ #??????????????????# """ """ #????????????? | | " #??????????????????# #????????????? | | " !#??????????????????# """ """ ?????????????? | | #??????????????????# """ """ #????????????? | | #??????????????????# ???? """ #????????????? | | ###+#????????????????????????? ????????????????? | | ?????????????????????????????? ?????????????????? | | ?????????????????????????????? ?????????????????? | | ??????????????????????????????? ?????????????????? | | ???????????????????????????????#?????????????????? | | ### #????????????????????????????????????????????? | | ?????????????????????????????????????? | | #####????????????????????????????????????????????? | +----------------------------------------------------+ Best States ------------- Heat Dissipation 259 Energy Generation 34 Energy Capacity 160 Matter Stores 300 Matter Capacity 300 Sight Range 19 Terrain Scan Density 10 Armor Coverage 1025 Power Shielding 33 Evasion (%) 66 Item Schematics ----------------- VTOL Module | -8/Materials | Extracted Imp. Power Shielding | -8/Materials | Extracted Hvy. Mace | -8/Materials | Extracted Med. Armor Plating | -8/Materials | Extracted Particle Charger | -8/Materials | Extracted Hcp. Matter Pod | -8/Materials | Extracted Nuclear Core | -8/Materials | Extracted Hrd. Medium Armor Plating | -8/Materials | Extracted Robot Schematics ------------------ None Fabricated ------------ L-41 Fighter | x3 | -7/Factory | Preloaded Repaired ---------- Nothing Studied --------- None Alien Tech Used ----------------- None Achievements -------------- None Challenges ------------ None RPGLIKE | -11 -10 -10 -10 -9 -8 -7 --------- Run | Yrd Mat Min Exi Min Mat Fac Levels Raised 16 | . 3 . 1 1 6 5 XP Earned 27522 | 3000 4622 1100 350 1775 9213 7462 XP Spent 25460 | . 6300 . 2500 . 9710 6950 Upgrades 52 | . 21 . 2 . 15 14 Propulsion Slot 1 | . 1 . . . . . Utility Slot 6 | . 2 . 2 . 2 . Weapon Slot 1 | . 1 . . . . . Heat Dissipation 28 | . 11 . . . 7 10 Energy Generation 4 | . . . . . 3 1 Mass Support 2 | . 2 . . . . . Inventory Capacity 3 | . 2 . . . 1 . Sight Range 3 | . . . . . . 3 Ranged Accuracy 4 | . 2 . . . 2 . Protomatter Created 3579 | . 575 43 . 102 907 1952 Integrity Restored 4004 | . 1017 100 . 255 1385 1247 Core 2433 | . 849 77 . 112 739 656 Parts 1571 | . 168 23 . 143 646 591 Protomatter Decayed 426 | . 63 24 . 58 135 146 Game ------ Seed WarlordNavigationCalibrator Manual? 1 Play Time 00:47:33 Cumulative 677.4 hours Start 2026.07.18 @ 19:48:55 End 2026.07.20 @ 07:27:13 Sessions 9 Manual Loads 0 Difficulty Rogue Special Mode Winter2019/RPGLIKE Game No. 337 Rogue 183 Adventurer 154 Explorer 0 Win Type - Total 23 Types 4/6/4/3/2/1/0/1/1/1 Lore% 95 Gallery% 88 Achievement% 68 Wizard Run 0 Options --------- Layout 0 ASCII 0 Keyboard 0 Movement Numpad Keybinds 0 Fullscreen 2 Font 18/SmallcapsGlow Map View 76x50 Zoom Use 0% Tactical HUD 1 Map Filters NONE Filters NONE Steam 1 RUN: b319cfcd-a13a-473a-80d2-6dbb93e13239